Cogmind - Beta 16.1 *** ADVENTURER MODE // 2026.02.24 @ 13:35:58 Player: triibiis Result: Destroyed by D-53 Grenadier with Mini Grenade Launcher Performance ------------- Evolutions (0) 0 Regions Visited (2) 400 Robots Destroyed (24) 120 Value Destroyed (574) 574 Prototype IDs (0) 0 Alien Tech Used (0) 0 Bonus (0) 0 TOTAL SCORE: 1094 Bonus ------- None Cogmind --------- Core Integrity 0/250 Matter 117/300 Energy 100/100 System Corruption 0% Temperature Cool (0) Movement Core (150) Ox2 Location -10/Mines Parts ------- > --- POWER (1) -------- (None) > --- PROPULSION (2) --- (None) > --- UTILITY (2) ------ Small Storage Unit Visual Processing Unit > --- WEAPON (2) ------- Shotgun > --- INVENTORY (8) ---- Light Ion Engine Light Treads Light Treads Signal Interpreter Terrain Scan Processor Mining Laser Mining Laser Peak State ------------ > --- POWER ------------ Ion Engine > --- PROPULSION ------- Wheel Compact Wheel > --- UTILITY ---------- Small Storage Unit Visual Processing Unit > --- WEAPON ----------- EM Pulse Gun Shotgun > --- INVENTORY -------- Light Ion Engine Light Treads Light Treads Signal Interpreter Terrain Scan Processor Light Assault Rifle Shotgun Grenade Launcher [Rating: 10] Favorites ----------- Power Ion Engine Engine Ion Engine Propulsion Compact Wheel Wheel Compact Wheel Utility Small Storage Unit Storage Small Storage Unit Processor Visual Processing Unit Weapon Shotgun Energy Gun EM Pulse Gun Ballistic Gun Shotgun Launcher Grenade Launcher Build | -11 -10 -10 ------- Run | Yrd Mat Min Slots Evolved . | . . . Power . | . . . Propulsion . | . . . Utility . | . . . Weapon . | . . . Parts Attached 15 | 8 6 1 Power 2 | 2 . . Engine 2 | 2 . . Core . | . . . Reactor . | . . . Propulsion 3 | 2 1 . Treads . | . . . Leg . | . . . Wheel 3 | 2 1 . Hover . | . . . Flight . | . . . Utility 2 | 1 1 . Device . | . . . Storage 1 | 1 . . Processor 1 | . 1 . Hackware . | . . . Protection . | . . . Artifact . | . . . Weapon 8 | 3 4 1 Energy Gun 1 | . 1 . Energy Cannon . | . . . Ballistic Gun 5 | 3 1 1 Ballistic Cannon . | . . . Launcher 2 | . 2 . Special Weapon . | . . . Impact Weapon . | . . . Slashing Weapon . | . . . Piercing Weapon . | . . . Special Melee Weapon . | . . . Unidentified Prototypes . | . . . Parts Lost 7 | . 3 4 Power 1 | . . 1 Propulsion 3 | . 2 1 Utility . | . . . Weapon 3 | . 1 2 Highest Loss Streak 4 | . 1 4 To Critical Strikes . | . . . Average Backups 6 | 2 6 7 Power . | . 1 1 Propulsion 1 | 1 2 2 Utility 1 | . 1 2 Weapon 2 | . 2 2 Tool/Special . | . . . Unused Backups 7 | . 1 6 Power . | . . . Propulsion 3 | . 1 2 Utility 2 | . . 2 Weapon 2 | . . 2 Tool/Special . | . . . Average Slot Usage (%) 86 | . 87 85 Engine 14 | . 14 14 Wheel 20 | . 21 14 Storage 14 | . 14 14 Processor 9 | . 9 14 Energy Gun 4 | . 5 . Ballistic Gun 14 | . 14 16 Launcher 8 | . 8 11 Peak Build Rating 10 | 6 10 9 Average Rating 7 | 4 7 8 On Entrance 5 | . 6 9 Avg Prop Armor Cover (%) . | . . . Naked Turns . | . . . Heaviest Build 16 | 14 16 16 Greatest Support 26 | 26 26 16 Greatest Overweight (x) 1 | . 1 . Average Overweight (x) . | . . . Largest Inventory Capacity 8 | 8 8 8 Average Capacity 7 | 7 8 8 Most Carried 8 | 4 8 8 Average Carried 6 | 2 6 7 Final Capacity 8 | 8 8 8 Final Carried 8 | 4 8 7 Class Distribution -------------------- 100% | Mutant Dominant Class ---------------- Mutant | -10/Materials Mutant | -10/Mines Resources | -11 -10 -10 ----------- Run | Yrd Mat Min Matter Collected 476 | 226 250 . Remotely . | . . . Salvage Created 509 | . 509 . Parts 33 | . 33 . Haulers Intercepted . | . . . Recyclers Shooed . | . . . Parts Field Recycled . | . . . Retrieved Matter . | . . . Parts Self-Destructed . | . . . Prevented . | . . . Parts Restored . | . . . Kills | -11 -10 -10 ------- Run | Yrd Mat Min Combat Hostiles Destroyed 18 | . 18 . Guns 5 | . 5 . AOE 13 | . 13 . Classes Destroyed 4 | . 4 . Worker 4 | . 4 . Watcher 2 | . 2 . Swarmer 5 | . 5 . Grunt 13 | . 13 . Best Kill Streak 4 | . 4 . Combat Bots Only 3 | . 3 . Max Kills in Single Turn 2 | . 2 . Gunslinging . | . . . Exploded 2 | . 2 . Melee . | . . . Uniques/NPCs Destroyed . | . . . Combat | -11 -10 -10 -------- Run | Yrd Mat Min Hostile Shots Fired 62 | . 49 13 Missed 21 | . 21 . Hits 41 | . 28 13 Projectile 41 | . 28 13 AOE 13 | . . 13 Damage Taken 777 | . 360 417 Core 264 | . 66 198 Absorbed by Shields . | . . . Ignored by Resistances 230 | . 111 119 Core Remaining (%) 100 | 100 . . Volleys Fired 36 | . 30 6 Largest 2 | . 2 2 Hottest 63 | . 63 53 Shots Fired 70 | . 59 11 Gun 50 | . 41 9 Cannon . | . . . Launcher 20 | . 18 2 Special . | . . . Kinetic 39 | . 30 9 Thermal . | . . . Explosive 20 | . 18 2 Electromagnetic 11 | . 11 . Robot Hit Streak 13 | . 13 9 Robot Miss Streak 2 | . 2 2 Penetration Max . | . . . Secondary Targets . | . . . Shots Hit Robots 53 | . 43 10 Core Hits 41 | . 36 5 Critical Kills 1 | . 1 . Critical Parts Destroyed 1 | . 1 . Critical Strikes 2 | . 2 . Destroy 2 | . 2 . Melee Attacks . | . . . Impact . | . . . Slashing . | . . . Piercing . | . . . Sneak Attacks . | . . . Combat Hostiles . | . . . Follow-up Attacks . | . . . Damage Inflicted 1654 | . 1438 216 Guns 570 | . 408 162 Cannons . | . . . Explosions 1084 | . 1030 54 Melee . | . . . Ramming . | . . . Kinetic 473 | . 311 162 Thermal 62 | . 62 . Explosive 1022 | . 968 54 Electromagnetic 97 | . 97 . Impact . | . . . Slashing . | . . . Piercing . | . . . Highest Corruption . | . . . Average Corruption . | . . . Corruption Purged . | . . . Corruption Blocked . | . . . Overload Shots . | . . . Overflow Damage 8 | . 8 . Projectiles . | . . . Explosions 8 | . 8 . Melee . | . . . Knockbacks . | . . . Impact . | . . . Kinetic . | . . . Secondary . | . . . Self-Inflicted Damage 114 | . 114 . Shots 5 | . 5 . Rammed . | . . . Targets Rammed . | . . . Kicked . | . . . Crushed . | . . . Highest Temperature 29 | . 29 . Average Temperature 9 | . 9 . Received Heat Transfer 150 | . 150 . Siege Activations . | . . . Martial Activations . | . . . Shielding Activations . | . . . Robots Disrupted . | . . . Combat Hostiles . | . . . Robots Corrupted . | . . . Combat Hostiles . | . . . Parts Fried . | . . . Impact Corruptions . | . . . Robots Melted . | . . . Combat Hostiles . | . . . Parts Melted . | . . . Heat Transferred 50 | . 50 . Parts Sabotaged . | . . . Parts Stolen . | . . . Parts Stripped . | . . . Power Chain Reactions 1 | . 1 . Alert | -11 -10 -10 ------- Run | Yrd Mat Min Maximum Alert Level 1 | . 1 . Low Security (%) 85 | 100 83 100 Level 1 14 | . 16 . Level 2 . | . . . Level 3 . | . . . Level 4 . | . . . Level 5 . | . . . High Security . | . . . Max Security . | . . . Peak Influence 232 | . 232 67 Initial 67 | . . 67 Average 99 | . 109 50 Influence Increases 631 | . 617 14 Destroy 0b10 Robot/C 360 | . 360 . Destroy 0b10 Robot/NC 30 | . 30 . Destroy Leader 74 | . 74 . Successful Hack 18 | . 18 . Disable Machine 18 | . 18 . Destroy Structure 131 | . 117 14 Influence Decreases 630 | . 412 218 Entered New Map 138 | . . 138 Time Decay 422 | . 382 40 Lost Part 70 | . 30 40 Squads Dispatched 4 | . 4 . Investigation 4 | . 4 . Extermination . | . . . Reinforcement . | . . . Assault . | . . . Garrison . | . . . Intercept . | . . . Searches Triggered . | . . . Construction Impeded . | . . . Haulers Reinforced . | . . . Active Scanning Responses . | . . . Cargo Convoy Interrupts . | . . . Stealth | -11 -10 -10 --------- Run | Yrd Mat Min Distress Signals . | . . . Communications Jammed . | . . . Distress Signals . | . . . Times Spotted 29 | . 27 2 Peak Tracking Total 4 | . 4 2 Tactical Retreats . | . . . Traps | -11 -10 -10 ------- Run | Yrd Mat Min Traps Triggered 2 | . 2 . Indirectly . | . . . Trap Hack Attempts . | . . . Triggered . | . . . Disarmed . | . . . Reprogrammed . | . . . Reused . | . . . Traps Extracted . | . . . Installed . | . . . Triggered . | . . . Machines | -11 -10 -10 ---------- Run | Yrd Mat Min Machines Disabled 2 | . 2 . Max in Single Turn 1 | . 1 . Machines Repaired . | . . . Machines Dismantled . | . . . Machines Sabotaged . | . . . Overloaded Fab Kills . | . . . Hacking | -11 -10 -10 --------- Run | Yrd Mat Min Machines Accessed 7 | . 7 . Terminals 7 | . 7 . Fabricators . | . . . Repair Stations . | . . . Recycling Units . | . . . Scanalyzers . | . . . Garrison Access . | . . . Total Hacks 23 | . 23 . Successful 5 | . 5 . Failed 18 | . 18 . Catastrophic 6 | . 6 . Database Lockouts . | . . . Manual 17 | . 17 . Terminals 23 | . 23 . Fabricators . | . . . Repair Stations . | . . . Recycling Units . | . . . Scanalyzers . | . . . Garrison Access . | . . . Terminal Hacks 5 | . 5 . Level Access Points 1 | . 1 . Branch Access Points 1 | . 1 . Locate Traps 1 | . 1 . Maintenance Status 1 | . 1 . Hauler Manifests 1 | . 1 . Fabricator Hacks . | . . . Repair Station Hacks . | . . . Recycling Unit Hacks . | . . . Scanalyzer . | . . . Garrison Access Hacks . | . . . Unauthorized Hacks . | . . . Terminals . | . . . Fabricators . | . . . Repair Stations . | . . . Recycling Units . | . . . Scanalyzers . | . . . Garrison Access . | . . . Data Cores Recovered . | . . . Used . | . . . Hacking Detections 7 | . 7 . Full Trace Events 6 | . 6 . Feedback Events . | . . . Feedback Blocked . | . . . Robot Schematics Acquired . | . . . Robots Built . | . . . Authchips . | . . . Time . | . . . Total Robot Build Rating . | . . . Part Schematics Acquired . | . . . Parts Built . | . . . Authchips . | . . . Time . | . . . Total Part Build Rating . | . . . Part Studies Acquired . | . . . Parts Repaired . | . . . Time . | . . . Parts Recycled . | . . . Recycled Matter . | . . . Retrieved Matter . | . . . Retrieved Components . | . . . Parts Scanalyzed . | . . . Part Schematics Acquired . | . . . Parts Damaged . | . . . Bothacking | -11 -10 -10 ------------ Run | Yrd Mat Min Used RIF Installer . | . . . Robots Hacked . | . . . Non-combat . | . . . Combat . | . . . Robot Hacks Applied . | . . . Relay Couplers Released . | . . . Fabnet Peak Effective % . | . . . Robots Rewired . | . . . Allies Hacked . | . . . Hacks Repelled . | . . . Allies | -11 -10 -10 -------- Run | Yrd Mat Min Total Allies . | . . . Largest Group . | . . . Highest-Rated Group . | . . . Highest-Rated Ally . | . . . Total Orders . | . . . Ally Attacks . | . . . Total Damage . | . . . Kills . | . . . Allies Corrupted . | . . . Allies Melted . | . . . Intel | -11 -10 -10 ------- Run | Yrd Mat Min Active Infowar (turns) 670 | . 583 87 Optics 670 | . 583 87 Robot Analysis Total . | . . . Derelict Logs Recovered . | . . . Drone Launches . | . . . Drone Recoveries . | . . . Exploration | -11 -10 -10 ------------- Run | Yrd Mat Min Turns Passed 1032 | 53 892 87 Spaces Moved 909 | 45 807 57 Core 1 | 1 . . Treads . | . . . Legs . | . . . Wheels 908 | 44 807 57 Hover . | . . . Flight . | . . . Fastest Speed 50 | 50 90 100 Average Speed 94 | 88 94 100 Slowest Speed 100 | 90 100 100 Overloaded Moves . | . . . Propulsion Burnouts . | . . . Robots Hopped . | . . . Potential Cave-ins . | . . . Cave-ins Triggered . | . . . Exploration Rate (%) 41 | 3 96 24 Regions Visited 2 Branch Regions 1 Pre-discovered Areas . | . . . Known Exits Taken 1 | . 1 . Unknown Exits Taken 1 | 1 . . Scrap Searched . | . . . Spaces Dug . | . . . Terrain Destroyed 148 | . 125 23 Melee . | . . . Projectile . | . . . AOE 148 | . 125 23 Terrain Rammed . | . . . Walls Destroyed . | . . . Machines Disabled . | . . . Actions | -11 -10 -10 --------- Run | Yrd Mat Min Total 1011 | 54 881 76 Wait 36 | . 24 12 Move 907 | 44 806 57 Hop . | . . . Pick Up 10 | 2 8 . Fast Attach 10 | 6 4 . Attach 3 | . 2 1 Detach 2 | . 2 . Swap 2 | 2 . . Drop 5 | . 5 . Fire 36 | . 30 6 Melee . | . . . Ram . | . . . Kick . | . . . Crush . | . . . Escape Stasis . | . . . Rewire . | . . . Trap . | . . . Miscellaneous . | . . . Route ------- -11/Scrapyard -10/Materials (discovered 4 exits: *Mat x3 / *Min) -10/Mines History --------- Turn | Location | Event 13 | -11/Scrapyard | Discovered new exit (range 16) 54 | -11/Scrapyard | Entered Materials 228 | -10/Materials | Discovered new exit (range 15) 270 | -10/Materials | Discovered new exit (range 11) 341 | -10/Materials | Build established: Mutant 580 | -10/Materials | Discovered new exit (range 9) 639 | -10/Materials | Identified exit to Mines 704 | -10/Materials | Identified exit to Materials 946 | -10/Materials | Entered Mines 1001 | -10/Mines | Assembled infested the area 1023 | -10/Mines | Core integrity fell below 50% 1028 | -10/Mines | Core integrity fell below 20% 1033 | -10/Mines | Destroyed by D-53 Grenadier with Mini Grenade Launcher Last Messages --------------- U-05 Engineer builds a Wall. ALERT: Infestation in the mines, dispatching Demolisher response squad. T-07 Excavator is excavating. U-05 Engineer lays Concrete. T-07 Excavator is excavating. U-05 Engineer lays Concrete. C-45 Heavy ARC bursts open, deploying its payload. D-53 Grenadier unfolds itself. R-06 Scavenger destroyed. K-01 Serf destroyed. Grenade Launcher destroyed. U-05 Engineer lays Concrete. U-05 Engineer builds a Wall. The unstable cave ceiling collapses. Com. Wheel destroyed. Ion Engine destroyed. Shotgun destroyed. The unstable cave ceiling collapses. Map ----- +----------------------------------------------------+ | ??????????????????????????????????? | | ??????????????????????????????????? | | ??????????????????????????????????? | | ??????????????????????????????????? | | ??????????????????????????????????? | | ??????????????????????????????????? | | ??????????????????????????????????? | | ??????????????????????????????????? | | ??????????????????????????????????? | | ??????????????????????????????????? | | ??????????????????????????????????? | | ??????????????????????????????????? | | ??????????????????????????????????? | | ??????????????????????????????????? | | ??????????????????????????????????? | | ??????????????????????????????????? | | ??????????????????????????????????? | | ??????????????????????????????????? | | ??????????????????????###?????????? | | ?????????????????????? #?????????? | | ?????????????????????## #####?????? | | ???????????????????### ##??##? | | ???????????????????# # # | | ??????????????????## # | | ??????????????????# # # | | ??????????????????# @d % # | | ??????????????????# d # | | ??????????????????# ##?? | | ??????????????????## # ###??? | | ???????????????????###u ##????? | | ##???????????????##### ######?????? | | #?????????????## #?????????? | | #???????????## #?????????? | | ??????????# #### #?????????? | | ??????????# #??####?????????? | | ????###### #???????????????? | | ???## ## #???????????????? | | # #?## #???????????????? | | # ## #####????????????? | | ### #???????????? | | ### ##?????????? | | ##?? ##????????? | | ##???? ##???????? | | #### ####??????# #???????? | | ?????### #??????????# #???????? | | ???????# #???????????# ##??????? | | ###### ############# ###????? | | #????? | | #???? | | ## ############# #???? | +----------------------------------------------------+ Best States ------------- Heat Dissipation 25 Energy Generation 10 Energy Capacity 250 Matter Stores 300 Matter Capacity 300 Sight Range 18 Terrain Scan Density 10 Resistance: KI 20 Resistance: TH 20 Resistance: EX 20 Resistance: EM 20 Resistance: I 20 Resistance: S 20 Resistance: P 20 Evasion (%) 44 Offensive Hacking 10 Item Schematics ----------------- None Robot Schematics ------------------ None Fabricated ------------ Nothing Repaired ---------- Nothing Studied --------- None Alien Tech Used ----------------- None Achievements -------------- None Challenges ------------ None Game ------ Seed ShieldFlyingMediator Manual? 0 Play Time 00:13:45 Cumulative 23.6 hours Start 2026.02.24 @ 13:23:34 End 2026.02.24 @ 13:35:58 Sessions 1 Manual Loads 0 Difficulty Adventurer Special Mode None Game No. 64 Rogue 0 Adventurer 64 Explorer 0 Win Type - Total 0 Types 0/0/0/0/0/0/0/0/0/0 Lore% 21 Gallery% 19 Achievement% 16 Wizard Run 0 Options --------- Layout 1 ASCII 0 Keyboard 0 Movement Arrows Keybinds 0 Fullscreen 1 Font 36/Smallcaps Map View 50x43 Zoom Use 0% Tactical HUD 0 Map Filters NONE Filters NONE Steam 1 RUN: 6bf19e5a-0492-40c9-8a47-bfec393968e2